fUSD/lending_fUSD_20250505
["ID","MTS","AMOUNT","RATE_DAILY","PERIOD"]
[359902838,1746408652679,-500.0,0.00019998,2]
[359902839,1746408652688,-500.0,0.00019998,2]
[359902840,1746408652698,-500.0,0.00019998,2]
[359902841,1746408652707,-500.0,0.00019998,2]
[359902842,1746408652717,-500.0,0.00019998,2]
[359902843,1746408652727,-500.0,0.00019998,2]
[359902844,1746408652736,-531.17653262,0.00019998,2]
[359902845,1746408652745,-500.0,0.00019998,2]
[359902846,1746408652755,-500.0,0.00019998,2]
[359902847,1746408652764,-800.31,0.00019998,2]
[359902848,1746408652774,-800.31,0.00019998,2]
[359902849,1746408652783,-800.31,0.00019998,2]
[359902850,1746408652793,-800.31,0.00019998,2]
[359902851,1746408652803,-800.31,0.00019998,2]
[359902852,1746408652812,-450.0,0.00019998,2]
[359902853,1746408652822,-452.11446077,0.00019998,2]
[359902854,1746408652831,-2478.47,0.00019998,2]
[359902855,1746408652841,-2478.47,0.00019998,2]
[359902856,1746408652850,-2478.47,0.00019998,2]
[359902857,1746408652860,-2478.47,0.00019998,2]
[359902858,1746408652869,-2478.47,0.00019998,2]
[359902859,1746408652879,-450.0,0.00019998,2]
[359902860,1746408652888,-450.0,0.00019998,2]
[359902861,1746408652898,-1141.89,0.00019998,2]
[359902862,1746408652907,-450.0,0.00019998,2]
[359902863,1746408652918,-1141.89,0.00019998,2]
[359902864,1746408652930,-408.56,0.00019998,2]
[359902865,1746408652939,-1141.89,0.00019998,2]
[359902866,1746408652948,-1141.89,0.00019998,2]
[359902867,1746408652957,-970.69,0.00019998,2]
[359902868,1746408652966,-970.69,0.00019998,2]
[359902869,1746408652975,-970.69,0.00019998,2]
[359902870,1746408652984,-970.69,0.00019998,2]
[359902871,1746408652994,-970.69,0.00019998,2]
[359902872,1746408653004,-2025.21,0.00019998,2]
[359902873,1746408653015,-450.0,0.00019998,2]
[359902874,1746408653026,-2025.21,0.00019998,2]
[359902875,1746408653036,-2025.21,0.00019998,2]
[359902876,1746408653046,-2025.21,0.00019998,2]
[359902877,1746408653058,-450.0,0.00019998,2]
[359902878,1746408653068,-2025.21,0.00019998,2]
[359902879,1746408653079,-450.0,0.00019998,2]
[359902880,1746408653089,-450.0,0.00019998,2]
[359902881,1746408653103,-450.0,0.00019998,2]
[359902882,1746408653117,-450.0,0.00019998,2]
[359902883,1746408653128,-450.0,0.00019998,2]
[359902884,1746408653138,-450.0,0.00019998,2]
[359902885,1746408653148,-450.0,0.00019998,2]
[359902886,1746408653157,-450.0,0.00019998,2]
[359902887,1746408653167,-450.0,0.00019998,2]
[359902888,1746408653176,-450.0,0.00019998,2]
[359902889,1746408653186,-450.0,0.00019998,2]
[359902890,1746408653195,-797.56,0.00019998,2]
[359902891,1746408653204,-797.56,0.00019998,2]
[359902892,1746408653213,-797.56,0.00019998,2]
[359902893,1746408653222,-797.56,0.00019998,2]
[359902894,1746408653231,-797.56,0.00019998,2]
[359902895,1746408653240,-450.0,0.00019998,2]
[359902896,1746408653250,-450.0,0.00019998,2]
[359902897,1746408653260,-170.0568956,0.00019998,2]
[359902898,1746408653269,-151.0,0.00019998,2]
[359902899,1746408653279,-471.96439109,0.00019998,2]
[359902900,1746408653289,-151.0,0.00019998,2]
[359902901,1746408653299,-1931.39,0.00019998,2]
[359902902,1746408653308,-1931.39,0.00019998,2]
[359902903,1746408653318,-1931.39,0.00019998,2]
[359902904,1746408653328,-1931.39,0.00019998,2]
[359902905,1746408653339,-450.0,0.00019998,2]
[359902906,1746408653350,-450.0,0.00019998,2]
[359902907,1746408653359,-450.0,0.00019998,2]
[359902908,1746408653368,-450.0,0.00019998,2]
[359902909,1746408653380,-450.0,0.00019998,2]
[359902910,1746408653390,-450.0,0.00019998,2]
[359902911,1746408653400,-450.0,0.00019998,2]
[359902912,1746408653410,-450.0,0.00019998,2]
[359902913,1746408653420,-450.0,0.00019998,2]
[359902914,1746408653430,-450.0,0.00019998,2]
[359902915,1746408653441,-450.0,0.00019998,2]
[359902916,1746408653452,-450.0,0.00019998,2]
[359902917,1746408653463,-450.0,0.00019998,2]
[359902918,1746408653473,-450.0,0.00019998,2]
[359902919,1746408653483,-450.0,0.00019998,2]
[359902920,1746408653493,-234.32833272,0.00019998,2]
[359902921,1746408653502,-151.0,0.00019998,2]
[359902922,1746408653512,-151.0,0.00019998,2]
[359902923,1746408653523,-151.0,0.00019998,2]
[359902924,1746408653534,-450.0,0.00019998,2]
[359902925,1746408653544,-450.0,0.00019998,2]
[359902926,1746408653553,-677.16,0.00019998,2]
[359902927,1746408653562,-450.0,0.00019998,2]
[359902928,1746408653572,-677.16,0.00019998,2]
[359902929,1746408653580,-450.0,0.00019998,2]
[359902930,1746408653590,-677.16,0.00019998,2]
[359902931,1746408653599,-677.16,0.00019998,2]
[359902932,1746408653608,-267.26,0.00019998,2]
[359902933,1746408653618,-355.84,0.00019998,2]
[359902934,1746408653627,-151.0,0.00019998,2]
[359902935,1746408653636,-151.0,0.00019998,2]
[359902936,1746408653646,-151.0,0.00019998,2]
[359902937,1746408653655,-151.0,0.00019998,2]
[359902938,1746408653665,-450.0,0.00019998,2]
[359902939,1746408653674,-450.0,0.00019998,2]
[359902940,1746408653684,-510.29,0.00019998,2]
[359902941,1746408653693,-10152.76,0.00019998,2]
[359902942,1746408653702,-10152.76,0.00019998,2]
[359902943,1746408653711,-10152.76,0.00019998,2]
[359902944,1746408653720,-10152.76,0.00019998,2]
[359902945,1746408653730,-151.0,0.00019998,2]
[359902946,1746408653740,-1001.48,0.00019998,2]
[359902947,1746408653750,-1001.48,0.00019998,2]
[359902948,1746408653760,-1001.48,0.00019998,2]
[359902949,1746408653770,-1001.48,0.00019998,2]
[359902950,1746408653780,-450.0,0.00019998,2]
[359902951,1746408653790,-450.0,0.00019998,2]
[359902952,1746408653799,-450.0,0.00019998,2]
[359902953,1746408653809,-450.0,0.00019998,2]
[359902954,1746408653819,-174.14593802,0.00019998,2]
[359902955,1746408653829,-827.2,0.00019998,2]
[359902956,1746408653838,-827.2,0.00019998,2]
[359902957,1746408653848,-827.2,0.00019998,2]
[359902958,1746408653857,-827.2,0.00019998,2]
[359902959,1746408653867,-195.723554,0.00019998,2]
[359902960,1746408653876,-195.723554,0.00019998,2]
[359902961,1746408653886,-195.723554,0.00019998,2]
[359902962,1746408653895,-195.723554,0.00019998,2]
[359902963,1746408653905,-151.0,0.00019998,2]
[359902964,1746408653915,-278.725795,0.00019998,2]
[359902965,1746408653924,-483.34,0.00019998,2]
[359902966,1746408653934,-483.34,0.00019998,2]
[359902967,1746408653944,-483.34,0.00019998,2]
[359902968,1746408653954,-483.34,0.00019998,2]
[359902969,1746408653963,-450.0,0.00019998,2]
[359902970,1746408653973,-753.28,0.00019998,2]
[359902971,1746408653983,-450.0,0.00019998,2]
[359902972,1746408653993,-450.0,0.00019998,2]
[359902973,1746408654003,-753.28,0.00019998,2]
[359902974,1746408654013,-450.0,0.00019998,2]
[359902975,1746408654023,-753.28,0.00019998,2]
[359902976,1746408654033,-753.28,0.00019998,2]
[359902977,1746408654042,-595.9521967,0.00019998,2]
[359902978,1746408654053,-450.0,0.00019998,2]
[359902979,1746408654062,-450.0,0.00019998,2]
[359902980,1746408654072,-450.0,0.00019998,2]
[359902981,1746408654082,-450.0,0.00019998,2]
[359902982,1746408654092,-299.377622,0.00019998,2]
[359902983,1746408654103,-460.26,0.00019998,2]
[359902984,1746408654239,-450.0,0.00019998,2]
[359902985,1746408654250,-450.0,0.00019998,2]
[359902986,1746408654259,-450.0,0.00019998,2]
[359902987,1746408654268,-450.0,0.00019998,2]
[359902988,1746408654278,-206.629113,0.00019998,2]
[359902989,1746408654289,-450.0,0.00019998,2]
[359902990,1746408654299,-450.0,0.00019998,2]
[359902991,1746408654308,-450.0,0.00019998,2]
[359902992,1746408654318,-450.0,0.00019998,2]
[359902993,1746408654328,-687.61,0.00019998,2]
[359902994,1746408654338,-687.61,0.00019998,2]
[359902995,1746408654348,-687.61,0.00019998,2]
[359902996,1746408654358,-687.61,0.00019998,2]
[359902997,1746408654370,-450.0,0.00019998,2]
[359902998,1746408654380,-450.0,0.00019998,2]
[359902999,1746408654390,-450.0,0.00019998,2]
[359903000,1746408654399,-450.0,0.00019998,2]
[359903001,1746408654409,-843.95,0.00019998,2]
[359903002,1746408654419,-843.95,0.00019998,2]
[359903003,1746408654429,-163.038887,0.00019998,2]
[359903004,1746408654438,-450.0,0.00019998,2]
[359903005,1746408654447,-843.95,0.00019998,2]
[359903006,1746408654457,-450.0,0.00019998,2]
[359903007,1746408654467,-843.95,0.00019998,2]
[359903008,1746408654477,-450.0,0.00019998,2]
[359903009,1746408654486,-450.0,0.00019998,2]
[359903010,1746408654496,-151.0,0.00019998,2]
[359903011,1746408654505,-450.0,0.00019999,2]
[359903012,1746408654515,-450.0,0.00019999,2]
[359903013,1746408654525,-450.0,0.00019999,2]
[359903014,1746408654535,-450.0,0.00019999,2]
[359903015,1746408654544,-450.0,0.00019999,2]
[359903016,1746408654554,-450.0,0.00019999,2]
[359903017,1746408654564,-450.0,0.00019999,2]
[359903018,1746408654573,-450.0,0.00019999,2]
[359903019,1746408654583,-450.0,0.00019999,2]
[359903020,1746408654592,-450.0,0.00019999,2]
[359903021,1746408654603,-450.0,0.00019999,2]
[359903022,1746408654614,-450.0,0.00019999,2]
[359903023,1746408654624,-450.0,0.00019999,2]
[359903024,1746408654634,-450.0,0.00019999,2]
[359903025,1746408654643,-306.124114,0.00019999,2]
[359903026,1746408654653,-500.0,0.00019999,2]
[359903027,1746408654663,-500.0,0.00019999,2]
[359903028,1746408654673,-308.8,0.00019999,2]
[359903029,1746408654683,-450.0,0.00019999,2]
[359903030,1746408654692,-450.0,0.00019999,2]
[359903031,1746408654702,-450.0,0.00019999,2]
[359903032,1746408654712,-450.0,0.00019999,2]
[359903033,1746408654721,-450.0,0.00019999,2]
[359903034,1746408654731,-450.0,0.00019999,2]
[359903035,1746408654741,-450.0,0.00019999,2]
[359903036,1746408654750,-450.0,0.00019999,2]
[359903037,1746408654760,-450.0,0.00019999,2]
[359903038,1746408654770,-450.0,0.00019999,2]
[359903039,1746408654779,-450.0,0.00019999,2]
[359903040,1746408654789,-581.42098262,0.00019999,2]
[359903041,1746408654799,-732.56,0.00019999,2]
[359903042,1746408654810,-732.56,0.00019999,2]
[359903043,1746408654820,-732.56,0.00019999,2]
[359903044,1746408654829,-732.56,0.00019999,2]
[359903045,1746408654839,-732.56,0.00019999,2]
[359903046,1746408654849,-732.56,0.00019999,2]
[359903047,1746408654859,-732.56,0.00019999,2]
[359903048,1746408654869,-732.56,0.00019999,2]
[359903049,1746408654879,-732.56,0.00019999,2]
[359903050,1746408654889,-732.56,0.00019999,2]
[359903051,1746408654898,-732.56,0.00019999,2]
[359903052,1746408654909,-732.56,0.00019999,2]
[359903053,1746408654919,-732.56,0.00019999,2]
[359903054,1746408654930,-732.56,0.00019999,2]
[359903055,1746408654942,-732.63577685,0.00019999,2]
[359903056,1746408654953,-450.0,0.00019999,2]
[359903057,1746408654963,-450.0,0.00019999,2]
[359903058,1746408654974,-450.0,0.00019999,2]
[359903059,1746408654990,-450.0,0.00019999,2]
[359903060,1746408655002,-212.99,0.00019999,2]
[359903061,1746408655012,-450.0,0.00019999,2]
[359903062,1746408655022,-450.0,0.00019999,2]
[359903063,1746408655032,-450.0,0.00019999,2]
[359903064,1746408655043,-430.05974503,0.00019999,2]
[359903065,1746408655054,-151.0,0.00019999,2]
[359903066,1746408655067,-151.0,0.00019999,2]
[359903067,1746408655077,-151.0,0.00019999,2]
[359903068,1746408655088,-151.0,0.00019999,2]
[359903069,1746408655100,-479.43,0.00019999,2]
[359903070,1746408655113,-479.43,0.00019999,2]
[359903071,1746408655123,-479.43,0.00019999,2]
[359903072,1746408655134,-479.43,0.00019999,2]
[359903073,1746408655146,-479.43,0.00019999,2]
[359903074,1746408655157,-479.43,0.00019999,2]
[359903075,1746408655168,-479.43,0.00019999,2]
[359903076,1746408655178,-479.43,0.00019999,2]
[359903077,1746408655190,-479.43,0.00019999,2]
[359903078,1746408655200,-479.43,0.00019999,2]
[359903079,1746408655212,-479.43,0.00019999,2]
[359903080,1746408655223,-479.43,0.00019999,2]
[359903081,1746408655234,-479.43,0.00019999,2]
[359903082,1746408655245,-479.43,0.00019999,2]
[359903083,1746408655255,-479.43,0.00019999,2]
[359903084,1746408655266,-479.43,0.00019999,2]
[359903085,1746408655276,-479.60534459,0.00019999,2]
[359903086,1746408655288,-151.0,0.00019999,2]
[359903087,1746408655299,-450.0,0.00019999,2]
[359903088,1746408655314,-450.0,0.00019999,2]
[359903089,1746408655325,-450.0,0.00019999,2]
[359903090,1746408655335,-450.0,0.00019999,2]
[359903091,1746408655347,-450.0,0.00019999,2]
[359903092,1746408655359,-450.0,0.00019999,2]
[359903093,1746408655371,-450.0,0.00019999,2]
[359903094,1746408655382,-450.0,0.00019999,2]
[359903095,1746408655395,-450.0,0.00019999,2]
[359903096,1746408655406,-450.0,0.00019999,2]
[359903097,1746408655417,-450.0,0.00019999,2]
[359903098,1746408655428,-450.0,0.00019999,2]
[359903099,1746408655439,-450.0,0.00019999,2]
[359903100,1746408655450,-450.0,0.00019999,2]
[359903101,1746408655462,-367.08382668,0.00019999,2]
[359903102,1746408655473,-151.0,0.00019999,2]
[359903103,1746408655484,-151.0,0.00019999,2]
[359903104,1746408655497,-151.0,0.00019999,2]
[359903105,1746408655509,-151.0,0.00019999,2]
[359903106,1746408655520,-151.0,0.00019999,2]
[359903107,1746408655530,-151.0,0.00019999,2]
[359903108,1746408655541,-151.0,0.00019999,2]
[359903109,1746408655552,-151.0,0.00019999,2]
[359903110,1746408655571,-151.0,0.00019999,2]
[359903111,1746408655583,-278.029576,0.00019999,2]
[359903112,1746408655595,-248.14069676,0.00019999,2]
[359903113,1746408655607,-151.0,0.00019999,2]
[359903114,1746408655619,-635.4,0.00019999,2]
[359903115,1746408655631,-635.4,0.00019999,2]
[359903116,1746408655642,-635.4,0.00019999,2]
[359903117,1746408655654,-635.4,0.00019999,2]
[359903118,1746408655666,-635.4,0.00019999,2]
[359903119,1746408655678,-635.4,0.00019999,2]
[359903120,1746408655691,-635.4,0.00019999,2]
[359903121,1746408655713,-635.4,0.00019999,2]
[359903122,1746408655725,-635.4,0.00019999,2]
[359903123,1746408655736,-635.4,0.00019999,2]
[359903124,1746408655747,-635.4,0.00019999,2]
[359903125,1746408655759,-635.4,0.00019999,2]
[359903126,1746408655771,-635.4,0.00019999,2]
[359903127,1746408655783,-635.4,0.00019999,2]
[359903128,1746408655794,-635.4,0.00019999,2]
[359903129,1746408655807,-635.50188884,0.00019999,2]
[359903130,1746408655827,-450.0,0.00019999,2]
[359903131,1746408655838,-265.49063847,0.00019999,2]
[359903132,1746408655850,-450.0,0.00019999,2]
[359903133,1746408655862,-450.0,0.00019999,2]
[359903134,1746408655874,-450.0,0.00019999,2]
[359903135,1746408655886,-510.86,0.00019999,2]
[359903136,1746408655897,-500.0,0.00019999,2]
[359903137,1746408655909,-500.0,0.00019999,2]
[359903138,1746408655922,-500.0,0.00019999,2]
[359903139,1746408655933,-500.0,0.00019999,2]
[359903140,1746408655945,-450.0,0.00019999,2]
[359903141,1746408655956,-500.0,0.00019999,2]
[359903142,1746408655968,-500.0,0.00019999,2]
[359903143,1746408655979,-564.08360389,0.00019999,2]
[359903144,1746408655990,-450.0,0.00019999,2]
[359903145,1746408656001,-450.0,0.00019999,2]
[359903146,1746408656013,-450.0,0.00019999,2]
[359903147,1746408656026,-450.0,0.00019999,2]
[359903148,1746408656039,-450.0,0.00019999,2]
[359903149,1746408656050,-450.0,0.00019999,2]
[359903150,1746408656067,-450.0,0.00019999,2]
[359903151,1746408656078,-450.0,0.00019999,2]
[359903152,1746408656090,-450.0,0.00019999,2]
[359903153,1746408656107,-450.0,0.00019999,2]
[359903154,1746408656119,-450.0,0.00019999,2]
[359903155,1746408656133,-450.0,0.00019999,2]
[359903156,1746408656146,-450.0,0.00019999,2]
[359903157,1746408656157,-382.10358516,0.00019999,2]
[359903158,1746408656168,-17463.45,0.00019999,2]
[359903159,1746408656179,-17463.45,0.00019999,2]
[359903160,1746408656190,-17463.45,0.00019999,2]
[359903161,1746408656202,-17463.45,0.00019999,2]
[359903162,1746408656212,-17463.45,0.00019999,2]
[359903163,1746408656223,-17463.45,0.00019999,2]
[359903164,1746408656239,-17463.45,0.00019999,2]
[359903165,1746408656251,-17463.45,0.00019999,2]
[359903166,1746408656263,-17463.45,0.00019999,2]
[359903167,1746408656274,-17463.45,0.00019999,2]
[359903168,1746408656285,-17463.45,0.00019999,2]
[359903169,1746408656296,-17463.45,0.00019999,2]
[359903170,1746408656311,-17463.45,0.00019999,2]
[359903171,1746408656325,-17463.45,0.00019999,2]
[359903172,1746408656335,-17463.61714513,0.00019999,2]
[359903173,1746408656346,-800.31,0.00019999,2]
[359903174,1746408656358,-800.31,0.00019999,2]
[359903175,1746408656370,-800.31,0.00019999,2]
[359903176,1746408656381,-800.31,0.00019999,2]
[359903177,1746408656391,-800.31,0.00019999,2]
[359903178,1746408656402,-800.31,0.00019999,2]
[359903179,1746408656412,-800.31,0.00019999,2]
[359903180,1746408656423,-800.31,0.00019999,2]
[359903181,1746408656435,-800.31,0.00019999,2]
[359903182,1746408656447,-2478.47,0.00019999,2]
[359903183,1746408656459,-2478.47,0.00019999,2]
[359903184,1746408656469,-2478.47,0.00019999,2]
[359903185,1746408656480,-2470.61816722,0.00019999,2]
[359903186,1746408656673,-7.85183278,0.00019999,2]
[359903187,1746408656685,-2478.47,0.00019999,2]
[359903188,1746408656696,-2478.47,0.00019999,2]
[359903189,1746408656708,-2478.47,0.00019999,2]
[359903190,1746408656719,-2252.19084087,0.00019999,2]
[359903191,1746408656740,-552.91816867,0.00019895,2]
[359903192,1746408656751,-226.27915913,0.00019999,2]
[359903193,1746408656763,-2478.47,0.00019999,2]
[359903194,1746408656775,-2478.47,0.00019999,2]
[359903195,1746408656786,-2478.47,0.00019999,2]
[359903196,1746408656798,-2478.47,0.00019999,2]
[359903197,1746408656813,-2478.47,0.00019999,2]
[359903198,1746408656833,-2478.47,0.00019999,2]
[359903199,1746408656848,-2478.53710591,0.00019999,2]
[359903200,1746408656862,-1141.89,0.00019999,2]
[359903201,1746408656875,-1141.89,0.00019999,2]
[359903202,1746408656887,-1141.89,0.00019999,2]
[359903203,1746408656899,-1141.89,0.00019999,2]
[359903204,1746408656910,-1141.89,0.00019999,2]
[359903205,1746408656923,-1141.89,0.00019999,2]
[359903206,1746408656934,-1141.89,0.00019999,2]
[359903207,1746408656946,-274.38696745,0.00019999,2]
[359903208,1746408657121,-489.67437951,0.00019895,2]
[359903209,1746408657132,-450.0,0.00019895,2]
[359903210,1746408657145,-541.67226751,0.00019895,2]
[359903211,1746408657158,-214.27484306,0.00019978,2]
[359903212,1746408657172,-867.50303255,0.00019999,2]
[359903213,1746408657183,-1141.89,0.00019999,2]
[359903214,1746408657194,-1141.89,0.00019999,2]
[359903215,1746408657206,-1141.89,0.00019999,2]
[359903216,1746408657218,-1141.89,0.00019999,2]
[359903217,1746408657231,-1141.89,0.00019999,2]
[359903218,1746408657243,-1141.89,0.00019999,2]
[359903219,1746408657254,-1141.91,0.00019999,2]
[359903220,1746408657269,-970.69,0.00019999,2]
[359903221,1746408657280,-970.69,0.00019999,2]
[359903222,1746408657291,-970.69,0.00019999,2]
[359903223,1746408657305,-970.69,0.00019999,2]
[359903224,1746408657320,-970.69,0.00019999,2]
[359903225,1746408657332,-970.69,0.00019999,2]
[359903226,1746408657343,-283.256582,0.00019999,2]
[359903227,1746408658478,-425.5726874,0.00019999,2]
[359903228,1746408658523,-253.37492,0.00019894,2]
[359903229,1746408658537,-246.62508,0.00019894,2]
[359903230,1746408658547,-229.16252645,0.00019894,2]
[359903231,1746408658562,-500.0,0.00019894,2]
[359903232,1746408658573,-280.18080793,0.00019894,2]
[359903233,1746408658585,-261.8607306,0.00019999,2]
[359903234,1746408658596,-2025.21,0.00019999,2]
[359903235,1746408658608,-413.42651894,0.00019999,2]
[359903236,1746408658622,-557.26348106,0.00019999,2]
[359903237,1746408658633,-1920.13751739,0.00019999,2]
[359903238,1746408658650,-105.07248261,0.00019999,2]
[359903239,1746408658661,-970.69,0.00019999,2]
[359903240,1746408658673,-83.28040026,0.00019999,2]
[359903241,1746408664300,961.72274847,0.0003,30]
[359903242,1746408664850,225.56354165,0.0003,30]
[359903243,1746408679928,169.57,0.00019054,2]
[359903246,1746408727422,858.05138,0.000299,30]
[359903250,1746408743163,160.0,0.0003,32]
[359903251,1746408790185,889.94170868,0.0002955,30]
[359903252,1746408823230,163.38,0.00018966,2]
[359903253,1746408823432,163.38,0.00019014,2]
[359903254,1746408823636,163.38,0.00019061,2]
[359903255,1746408849703,230.0,0.00030136,120]
[359903256,1746409041172,160.0,0.0003,32]
[359903257,1746409100283,283.35,0.00018929,2]
[359903258,1746409102540,-168.31,0.00019527,2]
[359903259,1746409145107,253.54,0.0001896,2]
[359903260,1746409293156,376.49,0.00016963,2]
[359903261,1746409293388,376.49,0.00019227,2]
[359903262,1746409338288,160.0,0.0003,32]
[359903263,1746409411399,250.0,0.00017,2]
[359903264,1746409412646,300.0,0.00019,2]
[359903265,1746409487704,1000.0,0.00018866,2]
[359903266,1746409524400,23900.0,0.00018866,2]
[359903292,1746409639759,160.0,0.0003,32]
[359903298,1746409674030,950.208169,0.0003,31]
[359903299,1746409675464,208.32,0.00019,2]
[359903300,1746409738154,237.05051,0.0003,30]
[359903332,1746409831509,-151.0,0.00019626,2]
[359903334,1746409831518,-250.0,0.00019663,2]
[359903335,1746409831528,-200.0,0.00019663,2]
[359903337,1746409831538,-353.55274557,0.000197,2]
[359903340,1746409831547,-185.92076256,0.00019715,2]
[359903351,1746409831614,-1014.07923744,0.00019715,2]
[359903353,1746409831623,-300.0,0.00019715,2]
[359903355,1746409831632,-300.0,0.00019715,2]
[359903357,1746409831641,-12564.03777384,0.00019716,2]
[359903363,1746409831719,-475.19630274,0.00019716,2]
[359903364,1746409831774,-2380.21952971,0.00019716,2]
[359903365,1746409831828,-5191.95524351,0.00019716,2]
[359903366,1746409831837,-9978.41816554,0.00019725,2]
[359903367,1746409831846,-3831.44786687,0.00019726,2]
[359903368,1746409831882,-1792.79999997,0.00019726,2]
[359903369,1746409831893,-3200.09805174,0.00019726,2]
[359903370,1746409831904,-17394.78981001,0.00019726,2]
[359903420,1746409837596,-270.2388,0.00019695,2]
[359903421,1746409837606,-24969.37938594,0.00019726,2]
[359903422,1746409837615,-159.73715064,0.00019726,2]
[359903423,1746409837624,-207.4,0.00019783,2]
[359903424,1746409837634,-1231.28104549,0.00019795,2]
[359903425,1746409837642,-7979.4454,0.00019795,2]
[359903426,1746409837651,-276.8127,0.00019796,2]
[359903427,1746409837662,-160.2234637,0.00019799,2]
[359903428,1746409837670,-1000.0,0.00019799,2]
[359903429,1746409837678,-1231.28104546,0.00019807,2]
[359903430,1746409837687,-1231.28104546,0.00019818,2]
[359903431,1746409837696,-1231.28104546,0.0001983,2]
[359903432,1746409837705,-1231.28104546,0.00019842,2]
[359903433,1746409837714,-1231.28104546,0.00019853,2]
[359903434,1746409837723,-500.0,0.00019863,2]
[359903435,1746409837733,-1231.28104546,0.00019865,2]
[359903436,1746409837743,-166.09066318,0.00019873,2]
[359903437,1746409837753,-503.08998536,0.00019873,2]
[359903438,1746409837762,-500.0,0.00019873,2]
[359903439,1746409837772,-503.73260613,0.00019873,2]
[359903440,1746409837784,-500.0,0.00019873,2]
[359903441,1746409837793,-500.8399196,0.00019873,2]
[359903442,1746409837803,-500.0,0.00019873,2]
[359903443,1746409837812,-502.01523676,0.00019873,2]
[359903444,1746409837821,-164.22983015,0.00019873,2]
[359903445,1746409837830,-151.0,0.00019873,2]
[359903446,1746409837839,-151.0,0.00019873,2]
[359903447,1746409837848,-668.65185757,0.00019873,2]
[359903448,1746409837857,-1231.28104546,0.00019877,2]
[359903449,1746409837867,-2996.6032,0.00019883,2]
[359903450,1746409837876,-154.25,0.00019887,2]
[359903451,1746409837885,-153.06,0.00019888,2]
[359903452,1746409837896,-1231.28104546,0.00019888,2]
[359903453,1746409837905,-154.25,0.0001989,2]
[359903454,1746409837915,-251.1742546,0.00019894,2]
[359903455,1746409837924,-500.0,0.00019894,2]
[359903456,1746409837934,-500.0,0.00019894,2]
[359903457,1746409837946,-500.0,0.00019894,2]
[359903458,1746409837955,-500.0,0.00019894,2]
[359903459,1746409837965,-500.0,0.00019894,2]
[359903460,1746409837974,-500.0,0.00019894,2]
[359903461,1746409837984,-500.0,0.00019894,2]
[359903462,1746409837993,-500.0,0.00019894,2]
[359903463,1746409838003,-500.0,0.00019894,2]
[359903464,1746409838012,-500.0,0.00019894,2]
[359903465,1746409838022,-500.0,0.00019894,2]
[359903466,1746409838033,-500.0,0.00019894,2]
[359903467,1746409838042,-260.03675988,0.00019894,2]
[359903468,1746409838052,-400.0,0.00019895,2]
[359903469,1746409838061,-474.41474858,0.00019895,2]
[359903470,1746409838071,-504.85582275,0.00019895,2]
[359903471,1746409838080,-405.35258765,0.00019895,2]
[359903472,1746409838088,-504.52189058,0.00019895,2]
[359903473,1746409838097,-494.44649105,0.00019895,2]
[359903474,1746409838105,-288.18598426,0.00019895,2]